Cogmind - Beta 14 @@@ ROGUE MODE // 2024.08.29 @ 02:26:30 Player: J1ang-5h1 Result: Destroyed by UF-0RF(R) with Subdweller Laser Performance ------------- Evolutions (0) 0 Regions Visited (2) 400 Robots Destroyed (39) 195 Value Destroyed (859) 859 Prototype IDs (13) 260 Alien Tech Used (0) 0 Bonus (0) 0 TOTAL SCORE: 1714 Bonus ------- None Cogmind --------- Core Integrity 0/250 Matter 275/300 Energy 12/100 System Corruption 0% Temperature Cool (6) Movement Treading (480) Ox4 Location -10/Subcaves Parts ------- > --- POWER (1) -------- (None) > --- PROPULSION (2) --- Light Treads > --- UTILITY (2) ------ Huge Storage Unit > --- WEAPON (2) ------- Beam Cannon Makeshift Axe > --- INVENTORY (25) --- Subdweller Monowheel Huge Storage Unit Large Battery (200) Subdweller Optics Subdweller Optics Sensor Array Signal Interpreter Seismic Detector Transport Network Coupler Targeting Computer Rainbow Chip Spread Laser Spread Laser Spread Laser Spread Laser Subdweller Laser Beam Cannon Assault Rifle Light Cannon Grenade Launcher Grenade Launcher Rocket Launcher Rocket Launcher Rocket Launcher Plasma Cutter Peak State ------------ > --- POWER ------------ Ion Engine > --- PROPULSION ------- Light Treads Light Treads > --- UTILITY ---------- Huge Storage Unit Improved Terrain Scanner > --- WEAPON ----------- Rocket Launcher Makeshift Axe > --- INVENTORY -------- Subdweller Monowheel Huge Storage Unit Large Battery Subdweller Optics Subdweller Optics Sensor Array Signal Interpreter Seismic Detector Transport Network Coupler Targeting Computer Rainbow Chip Spread Laser Spread Laser Spread Laser Spread Laser Subdweller Laser Beam Cannon Beam Cannon Assault Rifle Light Cannon Grenade Launcher Grenade Launcher Rocket Launcher Rocket Launcher Plasma Cutter [Rating: 17] Favorites ----------- Power Light Ion Engine Engine Light Ion Engine Propulsion Aluminum Leg Treads Light Treads Leg Aluminum Leg Wheel Wheel Utility Huge Storage Unit Device Seismic Detector Storage Huge Storage Unit Weapon Assault Rifle Energy Gun Spread Laser Energy Cannon Beam Cannon Ballistic Gun Assault Rifle Launcher Rocket Launcher Special Weapon Mining Laser Slashing Weapon Makeshift Axe Build | -11 -10 -10 ------- Run | Yrd Mat Sub Slots Evolved . | . . . Power . | . . . Propulsion . | . . . Utility . | . . . Weapon . | . . . Parts Attached 27 | . 14 13 Power 2 | . 1 1 Engine 2 | . 1 1 Core . | . . . Reactor . | . . . Propulsion 6 | . 2 4 Treads 2 | . . 2 Leg 3 | . 2 1 Wheel 1 | . . 1 Hover . | . . . Flight . | . . . Utility 3 | . 2 1 Device 2 | . 1 1 Storage 1 | . 1 . Processor . | . . . Hackware . | . . . Protection . | . . . Artifact . | . . . Weapon 16 | . 9 7 Energy Gun 3 | . 3 . Energy Cannon 4 | . 2 2 Ballistic Gun 1 | . 1 . Ballistic Cannon . | . . . Launcher 5 | . 2 3 Special Weapon 1 | . 1 . Impact Weapon . | . . . Slashing Weapon 2 | . . 2 Piercing Weapon . | . . . Special Melee Weapon . | . . . Unidentified Prototypes . | . . . Parts Lost 5 | . 1 4 Power 3 | . 1 2 Propulsion 2 | . . 2 Utility . | . . . Weapon . | . . . Highest Loss Streak 2 | . 1 2 To Critical Strikes 1 | . . 1 Average Slot Usage (%) 99 | . 100 97 Engine 13 | . 14 11 Treads 6 | . . 18 Leg 21 | . 28 9 Device 13 | . 14 13 Storage 14 | . 14 14 Energy Cannon 8 | . 8 9 Ballistic Gun 12 | . 18 . Launcher 5 | . . 15 Peak Build Rating 17 | 7 12 17 Average Rating 10 | 6 9 13 On Entrance 7 | 6 7 10 Naked Turns . | . . . Heaviest Build 94 | 12 90 94 Greatest Support 40 | 20 20 40 Greatest Overweight (x) 4 | . 4 4 Average Overweight (x) 2 | . 2 2 Largest Inventory Capacity 25 | 8 25 25 Average Capacity 22 | 8 22 25 Most Carried 25 | 8 25 25 Average Carried 21 | 6 19 24 Final Capacity 25 | 8 25 25 Final Carried 25 | 8 25 25 Class Distribution -------------------- 100% | Mutant Dominant Class ---------------- Mutant | -10/Materials Mutant | -10/Subcaves Resources | -11 -10 -10 ----------- Run | Yrd Mat Sub Matter Collected 1009 | 218 371 420 Remotely . | . . . Salvage Created 1100 | 122 594 384 Parts 80 | 9 45 26 Haulers Intercepted 2 | . 2 . Recyclers Shooed 1 | 1 . . Parts Field Recycled . | . . . Retrieved Matter . | . . . Parts Self-Destructed 10 | . . 10 Prevented . | . . . Kills | -11 -10 -10 ------- Run | Yrd Mat Sub Combat Hostiles Destroyed 27 | . 11 16 Melee 1 | . . 1 Guns 9 | . 9 . Cannons 4 | . 1 3 AOE 13 | . 1 12 Classes Destroyed 7 | 2 4 1 Tunneler 3 | 2 1 . Hauler 2 | . 2 . Recycler 4 | 1 3 . Watcher 3 | . 3 . Swarmer 11 | . 8 3 Grunt 3 | . 3 . Subdweller 13 | . . 13 Best Kill Streak 7 | 2 7 5 Combat Bots Only 5 | . 4 5 Max Kills in Single Turn 4 | 1 4 2 Gunslinging . | . . . Exploded 2 | . 1 2 Melee 1 | . . 1 Uniques/NPCs Destroyed . | . . . Combat | -11 -10 -10 -------- Run | Yrd Mat Sub Hostile Shots Fired 96 | . 41 55 Missed 29 | . 14 15 Damage Taken 1285 | . 320 965 Core 269 | . 53 216 Absorbed by Shields . | . . . Core Remaining (%) 100 | 100 . . Volleys Fired 74 | 4 41 29 Largest 2 | 2 2 2 Hottest 120 | 40 120 120 Shots Fired 141 | 8 79 54 Gun 78 | 8 70 . Cannon 30 | . 6 24 Launcher 32 | . 2 30 Special 1 | . 1 . Kinetic 78 | 8 70 . Thermal 31 | . 7 24 Explosive 32 | . 2 30 Electromagnetic . | . . . Robot Hit Streak 15 | 5 6 15 Robot Miss Streak 4 | . 4 2 Penetration Max . | . . . Secondary Targets 1 | . 1 . Max Gunslinging Chain 1 | . 1 . Shots Hit Robots 78 | 5 38 35 Core Hits 51 | 4 21 26 Critical Kills . | . . . Critical Parts Destroyed . | . . . Critical Strikes . | . . . Melee Attacks 4 | . . 4 Impact . | . . . Slashing 4 | . . 4 Piercing . | . . . Sneak Attacks . | . . . Combat Hostiles . | . . . Follow-up Attacks . | . . . Damage Inflicted 2910 | 58 991 1861 Guns 521 | 58 463 . Cannons 357 | . 38 319 Explosions 1922 | . 490 1432 Melee 110 | . . 110 Ramming . | . . . Kinetic 521 | 58 463 . Thermal 357 | . 38 319 Explosive 1922 | . 490 1432 Electromagnetic . | . . . Impact . | . . . Slashing 110 | . . 110 Piercing . | . . . Highest Corruption . | . . . Average Corruption . | . . . Corruption Purged . | . . . Corruption Blocked . | . . . Overload Shots . | . . . Overflow Damage 122 | . 122 . Projectiles . | . . . Explosions 122 | . 122 . Melee . | . . . Knockbacks . | . . . Impact . | . . . Kinetic . | . . . Secondary . | . . . Self-Inflicted Damage 141 | . 96 45 Shots 4 | . 1 3 Rammed . | . . . Targets Rammed . | . . . Kicked . | . . . Crushed . | . . . Highest Temperature 192 | . 192 18 Average Temperature 47 | . 81 11 Received Heat Transfer 213 | . 30 183 Siege Activations . | . . . Robots Corrupted . | . . . Combat Hostiles . | . . . Parts Fried . | . . . Impact Corruptions . | . . . Robots Melted . | . . . Combat Hostiles . | . . . Parts Melted 2 | . . 2 Heat Transferred 740 | . 74 666 Parts Sabotaged . | . . . Parts Stolen . | . . . Parts Stripped . | . . . Power Chain Reactions . | . . . Alert | -11 -10 -10 ------- Run | Yrd Mat Sub Peak Influence 322 | 15 322 . Initial 9 | . 9 . Average 41 | 10 42 . Maximum Alert Level 1 | . 1 . Low Security (%) 93 | 100 92 . Level 1 6 | . 7 . Level 2 . | . . . Level 3 . | . . . Level 4 . | . . . Level 5 . | . . . High Security . | . . . Max Security . | . . . Squads Dispatched 3 | . 3 . Investigation 2 | . 2 . Extermination . | . . . Reinforcement 1 | . 1 . Assault . | . . . Garrison . | . . . Intercept . | . . . Searches Triggered . | . . . Construction Impeded . | . . . Haulers Reinforced . | . . . Active Scanning Responses . | . . . Cargo Convoy Interrupts . | . . . Stealth | -11 -10 -10 --------- Run | Yrd Mat Sub Distress Signals . | . . . Communications Jammed . | . . . Distress Signals . | . . . Times Spotted 36 | . 18 18 Peak Tracking Total 3 | . 3 3 Tactical Retreats 2 | . 2 . Traps | -11 -10 -10 ------- Run | Yrd Mat Sub Traps Triggered 3 | . . 3 Indirectly . | . . . Trap Hack Attempts . | . . . Triggered . | . . . Disarmed . | . . . Reprogrammed . | . . . Reused . | . . . Traps Extracted . | . . . Installed . | . . . Triggered . | . . . Machines | -11 -10 -10 ---------- Run | Yrd Mat Sub Machines Disabled 4 | . 3 1 Max in Single Turn 2 | . 2 1 Machines Repaired . | . . . Machines Dismantled . | . . . Machines Sabotaged . | . . . Overloaded Fab Kills . | . . . Hacking | -11 -10 -10 --------- Run | Yrd Mat Sub Machines Accessed 10 | . 9 1 Terminals 7 | . 7 . Fabricators . | . . . Repair Stations . | . . . Recycling Units 2 | . 2 . Scanalyzers . | . . . Garrison Access . | . . . Total Hacks 23 | . 22 1 Successful 14 | . 13 1 Failed 9 | . 9 . Catastrophic 1 | . 1 . Database Lockouts . | . . . Manual 10 | . 10 . Terminals 17 | . 17 . Fabricators . | . . . Repair Stations . | . . . Recycling Units 5 | . 5 . Scanalyzers . | . . . Garrison Access . | . . . Terminal Hacks 8 | . 7 1 Robot Analysis 2 | . 2 . Prototype ID Bank 1 | . 1 . Alert Level 1 | . 1 . Locate Traps 2 | . 2 . Zone Layout 1 | . 1 . Derelict Proto ID Bank 1 | . . 1 Fabricator Hacks . | . . . Repair Station Hacks . | . . . Recycling Unit Hacks 2 | . 2 . Report Inventory 2 | . 2 . Scanalyzer . | . . . Garrison Access Hacks . | . . . Unauthorized Hacks 4 | . 4 . Terminals 2 | . 2 . Botnet 2 | . 2 . Fabricators . | . . . Repair Stations . | . . . Recycling Units 2 | . 2 . Tunnel 2 | . 2 . Scanalyzers . | . . . Garrison Access . | . . . Data Cores Recovered . | . . . Used . | . . . Hacking Detections 8 | . 8 . Full Trace Events 1 | . 1 . Feedback Events . | . . . Feedback Blocked . | . . . Robot Schematics Acquired . | . . . Robots Built . | . . . Authchips . | . . . Time . | . . . Total Robot Build Rating . | . . . Part Schematics Acquired . | . . . Parts Built . | . . . Authchips . | . . . Time . | . . . Total Part Build Rating . | . . . Parts Repaired . | . . . Time . | . . . Parts Recycled . | . . . Recycled Matter . | . . . Retrieved Matter . | . . . Retrieved Components . | . . . Parts Scanalyzed . | . . . Part Schematics Acquired . | . . . Parts Damaged . | . . . Bothacking | -11 -10 -10 ------------ Run | Yrd Mat Sub Used RIF Installer . | . . . Robots Hacked . | . . . Non-combat . | . . . Combat . | . . . Robot Hacks Applied . | . . . Relay Couplers Released . | . . . Fabnet Peak Effective % . | . . . Robots Rewired . | . . . Allies Hacked . | . . . Hacks Repelled . | . . . Allies | -11 -10 -10 -------- Run | Yrd Mat Sub Total Allies . | . . . Largest Group . | . . . Highest-Rated Group . | . . . Highest-Rated Ally . | . . . Total Orders . | . . . Ally Attacks . | . . . Total Damage . | . . . Kills . | . . . Allies Corrupted . | . . . Allies Melted . | . . . Intel | -11 -10 -10 ------- Run | Yrd Mat Sub Robot Analysis Total 2 | . 2 . Derelict Logs Recovered 2 | . . 2 Drone Launches . | . . . Drone Recoveries . | . . . Exploration | -11 -10 -10 ------------- Run | Yrd Mat Sub Turns Passed 6213 | 59 4137 2017 Spaces Moved 1918 | 14 1353 551 Core . | . . . Treads 399 | . . 399 Legs 1519 | 14 1353 152 Wheels . | . . . Hover . | . . . Flight . | . . . Fastest Speed 120 | 120 120 320 Average Speed 304 | 120 291 342 Slowest Speed 400 | 120 400 400 Overloaded Moves . | . . . Propulsion Burnouts . | . . . Robots Hopped . | . . . Cave-ins Triggered . | . . . Exploration Rate (%) 43 | 2 94 35 Regions Visited 2 Branch Regions 1 Pre-discovered Areas 3 | . 2 1 Known Exits Taken . | . . . Unknown Exits Taken 2 | 1 1 . Scrap Searched 2 | . . 2 Spaces Dug 6 | . 6 . Terrain Destroyed 222 | . 39 183 Melee . | . . . Projectile 1 | . 1 . AOE 221 | . 38 183 Terrain Rammed . | . . . Walls Destroyed . | . . . Machines Disabled . | . . . Actions | -11 -10 -10 --------- Run | Yrd Mat Sub Total 2134 | 48 1469 617 Wait 69 | 29 32 8 Move 1916 | 13 1352 551 Hop . | . . . Pick Up 31 | 2 23 6 Fast Attach 1 | . . 1 Attach 4 | . 2 2 Detach . | . . . Swap 22 | . 12 10 Drop 13 | . 7 6 Fire 74 | 4 41 29 Melee 4 | . . 4 Ram . | . . . Kick . | . . . Crush . | . . . Escape Stasis . | . . . Rewire . | . . . Trap . | . . . Miscellaneous . | . . . Route ------- -11/Scrapyard -10/Materials (discovered 6 exits: [*Mat x3] / [*Min x2] / *Sub) -10/Subcaves (discovered 2 exits: [*Mat x2]) History --------- Turn | Location | Event 11 | -11/Scrapyard | Discovered new exit (range 3) 60 | -11/Scrapyard | Entered Materials 150 | -10/Materials | Discovered new exit (range 7) 243 | -10/Materials | Discovered new exit (range 3) 310 | -10/Materials | Build established: Mutant 424 | -10/Materials | Discovered new exit (range 5) 459 | -10/Materials | Discovered new exit (range 16) 714 | -10/Materials | Discovered new exit (range 15) 4173 | -10/Materials | Discovered new exit (range 6) 4197 | -10/Materials | Entered Subcaves 4643 | -10/Subcaves | Discovered new exit (range 11) 4843 | -10/Subcaves | Ambushed by Subdweller buried in earth 4844 | -10/Subcaves | Core integrity fell below 50% 4849 | -10/Subcaves | Ambushed by Subdweller buried in earth 4852 | -10/Subcaves | Ambushed by Subdweller buried in earth 4995 | -10/Subcaves | Shifting Twisted Machinery released Mak. Hammer 5726 | -10/Subcaves | Core integrity fell below 20% 5748 | -10/Subcaves | Visited 4L-MR0's lab 5792 | -10/Subcaves | Found Rainbow Chip 5944 | -10/Subcaves | Discovered new exit (range 8) 6155 | -10/Subcaves | Disturbed a concealed Subdweller 6214 | -10/Subcaves | Destroyed by UF-0RF(R) with Subdweller Laser Last Messages --------------- 05781_ 4L-MR0 mumbles: "Who knows where that last prototype ended up, probably tossed aside somewhere as if it were useless junk..." 05783_ Testing Chamber breached. 05792_ Dropped Beam Cannon. 05792_ Acquired Rainbow Chip. 05827_ Subatomizers dissect the Battle Rifle. 05840_ Subatomizers dissect the Battle Rifle, destroying it. 05944_ EXIT=FOUND 06081_ 8Z-7K2(R) destroyed. 06083_ Acquired 42 matter. 06088_ Subatomizers dissect the Disposable Heat Sink. 06160_ Ion Engine destroyed. 06175_ Subatomizers dissect the Sub. Power Source. 06206_ Dropped Imp. Terrain Scanner. 06208_ Critical hit (Destroy). 06208_ Lgt. Treads destroyed. Map ----- +----------------------------------------------------+ | ???????????????????????????????????????? | | ???????????????????????????????????????? | | ???????????????????????????????????????? | | ???????????????????????????????????????? | | ???????????????????????????????????????? | | ???????????????????????????????????????? | | ?????????????????????????????#?????????? | | ?????????????????#?????????????????????? | | ?????????????#?????????????????????????? | | ????????????????##?????????????????????? | | ????????????#???????????????????#??????? | | ???????#???????#???????????????????????# | | ????????????????????????????#??#???????? | | ?????????????#????????##??#????????????? | | ???????#????#??#???????????????????????? | | ?????????????????#?????#?#######???????? | | ??????????????#????#?#??## ##??????? | | ?????#??????????????????# ###?#??# | | ????????????????????????# #????? | | ??#????????###??######??# #?????? | | ???????#???#"& ##" ##?## % ###?????? | | ?????#???????# ### #???????? | | ?????????????##"#< #??????#? | | ???????#????? ###R #### #???????? | | ????????????"?## #### ##???????? | | ??????????????#@ ##????????? | | ????????????#?### ### #?#???????? | | ????????????????## #&%####?????????? | | ?????????????????## *!] #????#?????? | | ????????#?????????# ##??????##?? | | ?????????????#????# # #???#?????? | | ?????#?#?????##?# ### #?????????? | | ????????????????# ###?# #????#????? | | ??????????#?????# ##?### ###???????? | | ???????????????# ??## ##?????????? | | ?????????#??#?### ## #??????????? | | ????????????????# ?# #????#?????? | | ??????????????### ??# ###??????????? | | ???????????????# ## #????????????? | | ???????????????# # ##??????#????? | | ???????????????# ##???????##?? | | ??????????#????# ##???#?????? | | ???????????????##### #??#??????? | | ????????????#??????## ##????#????? | | ?????????????????#?### ###?????#??? | | ?????????????????????## #?????#???? | | ?????????????##???#??## #?????????? | | ????????????#???????## #?????????? | | ????????????????????# #????#???#? | | ??????????????####### #?????????? | +----------------------------------------------------+ Best States ------------- Heat Dissipation 25 Energy Generation 10 Energy Capacity 250 Matter Stores 300 Matter Capacity 300 Sight Range 16 Terrain Scan Range 16 Terrain Scan Density 10 Evasion (%) 55 Recoil Reduction 2 Item Schematics ----------------- None Robot Schematics ------------------ None Fabricated ------------ Nothing Alien Tech Used ----------------- None Achievements -------------- None Challenges ------------ None Game ------ Seed WeaponHardlightMachine Manual? 0 Play Time 00:27:58 Cumulative 249.1 hours Start 2024.08.29 @ 02:00:02 End 2024.08.29 @ 02:26:30 Sessions 1 Manual Loads 0 Difficulty Rogue Special Mode None Game No. 184 Rogue 174 Adventurer 0 Explorer 10 Win Type - Total 3 Types 3/0/0/0/0/0/0/0/0 Lore% 62 Gallery% 69 Achievement% 53 Wizard Run 0 Options --------- Layout 1 ASCII 0 Keyboard 0 Movement Arrows Keybinds 1 Fullscreen 1 Font 24/Smallcaps Map View 50x35 Zoom Use 0% Tactical HUD 1 Map Filters NONE Filters NONE Steam 1 RUN: d556d2e0-36aa-46b4-81b0-4b9442a74670